bitfinex/quotes_BTCUSD_20241201
["timestamp","ask_amount","ask_price","bid_price","bid_amount"]
[1733089904653,0.890636,97851.0,97848.0,0.00156793]
[1733089904868,0.00066116,97850.0,97848.0,0.00216303]
[1733089905087,0.924563,97849.0,97848.0,0.00216303]
[1733089905331,0.711844,97849.0,97848.0,0.00216303]
[1733089905767,0.0458,97852.0,97848.0,0.00216303]
[1733089906020,0.69847616,97851.0,97848.0,0.00216303]
[1733089906255,0.241152,97850.0,97848.0,0.00216303]
[1733089906478,0.00066116,97849.0,97848.0,0.00216303]
[1733089906698,0.00166116,97849.0,97848.0,0.00216303]
[1733089907134,0.27160616,97849.0,97848.0,0.00216303]
[1733089907355,0.803944,97849.0,97848.0,0.00216303]
[1733089907569,1.687202,97850.0,97848.0,0.00216303]
[1733089907792,0.00066116,97849.0,97848.0,0.00216303]
[1733089908003,2.18751616,97849.0,97848.0,0.00216303]
[1733089908215,1.720442,97849.0,97848.0,0.00154311]
[1733089908424,1.283896,97849.0,97848.0,0.00154311]
[1733089909316,1.245076,97849.0,97848.0,0.00154311]
[1733089909535,0.964734,97849.0,97848.0,0.00154311]
[1733089910230,0.965734,97849.0,97848.0,0.00154311]
[1733089913614,0.734081,97849.0,97848.0,0.00154311]
[1733089913828,0.534081,97849.0,97848.0,0.00154311]
[1733089914041,0.3251,97883.0,97848.0,0.00154311]
[1733089914283,3.09017137,97882.0,97848.0,0.00154311]
[1733089914503,3.1195,97881.0,97848.0,0.00154311]
[1733089914718,0.10350637,97880.0,97848.0,0.00154311]
[1733089914927,3.828078,97879.0,97848.0,0.00154311]
[1733089915139,3.36848237,97878.0,97848.0,0.00154311]
[1733089915385,3.27472446,97877.0,97848.0,0.00154311]
[1733089915576,3.22552537,97876.0,97848.0,0.00154311]
[1733089915796,3.112093,97875.0,97848.0,0.00154311]
[1733089916022,0.10350637,97874.0,97848.0,0.00154311]
[1733089916256,3.37124237,97874.0,97848.0,0.00254311]
[1733089916488,2.34242846,97873.0,97848.0,0.00254311]
[1733089916713,0.10350637,97872.0,97848.0,0.00154311]
[1733089916931,2.07776,97871.0,97848.0,0.00254311]
[1733089917170,2.13738837,97870.0,97848.0,0.00154311]
[1733089917378,1.590926,97869.0,97848.0,0.00154311]
[1733089917590,0.10349262,97868.0,97848.0,0.00254311]
[1733089917807,2.210786,97867.0,97848.0,0.00154311]
[1733089918030,2.15822016,97866.0,97848.0,0.00154311]
[1733089918246,2.094491,97865.0,97848.0,0.00154311]
[1733089918466,1.76978716,97864.0,97848.0,0.00154311]
[1733089918686,2.131995,97863.0,97848.0,0.00154311]
[1733089918898,0.00066116,97862.0,97848.0,0.00154311]
[1733089919113,0.00066116,97862.0,97848.0,0.00254311]
[1733089919114,2.005661,97861.0,97848.0,0.00254311]
[1733089919450,0.00066116,97860.0,97848.0,0.00154311]
[1733089919674,2.01366116,97860.0,97848.0,0.00254311]
[1733089919906,2.010833,97859.0,97848.0,0.00254311]
[1733089920118,1.99044416,97858.0,97848.0,0.00154311]
[1733089920356,2.45318373,97857.0,97848.0,0.00154311]
[1733089920594,0.046,97855.0,97848.0,0.00154311]
[1733089920805,3.13558737,97854.0,97848.0,0.00154311]
[1733089921030,3.283428,97853.0,97848.0,0.00154311]
[1733089921240,0.00066116,97852.0,97848.0,0.00154311]
[1733089921481,2.74962362,97852.0,97848.0,0.00154311]
[1733089921713,2.849835,97851.0,97848.0,0.00154311]
[1733089921938,2.05417216,97850.0,97848.0,0.00154311]
[1733089922175,1.954471,97849.0,97848.0,0.00154311]
[1733089922404,1.131684,97849.0,97848.0,0.00154311]
[1733089922643,0.518238,97849.0,97848.0,0.00154311]
[1733089922857,0.642547,97852.0,97848.0,0.00154311]
[1733089923071,0.00066116,97851.0,97848.0,0.00154311]
[1733089923320,0.002,97850.0,97848.0,0.00154311]
[1733089923554,0.15093916,97849.0,97848.0,0.00154311]
[1733089923781,0.150278,97849.0,97848.0,0.00154311]
[1733089924030,0.001,97849.0,97848.0,0.00701646]
[1733089924239,0.15,97875.0,97846.0,0.06183584]
[1733089924538,3.21387621,97875.0,97848.0,0.00432028]
[1733089924745,2.89326616,97874.0,97846.0,0.06243122]
[1733089924987,2.31796721,97873.0,97846.0,0.06243122]
[1733089925229,2.58944862,97872.0,97846.0,0.06243122]
[1733089925447,2.90735721,97871.0,97846.0,0.00059538]
[1733089925665,0.002,97850.0,97846.0,0.00059538]
[1733089925900,1.75099516,97870.0,97846.0,0.00059538]
[1733089925901,0.158605,97849.0,97846.0,0.00059538]
[1733089926128,0.15926616,97848.0,97847.0,0.00463162]
[1733089926352,0.15926616,97848.0,97846.0,0.00159538]
[1733089926353,0.10436616,97848.0,97846.0,0.00159538]
[1733089926578,4.124751,97847.0,97846.0,0.00059538]
[1733089926801,4.22759621,97847.0,97846.0,0.00159538]
[1733089927290,4.22759621,97847.0,97846.0,0.00059538]
[1733089927531,4.07759621,97847.0,97841.0,0.009894]
[1733089927766,3.38779616,97846.0,97841.0,0.01049028]
[1733089928002,3.52512021,97845.0,97841.0,0.01049028]
[1733089928222,2.51619716,97844.0,97841.0,0.01049028]
[1733089928451,0.15,97842.0,97841.0,0.01049028]
[1733089928685,3.00437416,97842.0,97841.0,0.01049028]
[1733089928916,2.058541,97842.0,97841.0,0.01049028]
[1733089929816,2.060541,97842.0,97841.0,0.01049028]
[1733089930730,1.751495,97842.0,97841.0,0.01049028]
[1733089931952,1.85232646,97842.0,97841.0,0.01049028]
[1733089932375,1.85432646,97842.0,97841.0,0.01049028]
[1733089932820,1.85632646,97842.0,97841.0,0.01049028]
[1733089933476,1.85634021,97842.0,97841.0,0.00949028]
[1733089934174,1.92064021,97842.0,97841.0,0.00949028]
[1733089935371,2.24174021,97842.0,97841.0,0.00949028]
[1733089935602,0.15,97840.0,97806.0,0.0802]
[1733089935821,3.83007237,97839.0,97806.0,0.0802]
[1733089936032,4.07782846,97838.0,97806.0,0.0802]
[1733089936248,3.38484637,97837.0,97806.0,0.0802]
[1733089936463,2.279416,97836.0,97806.0,0.0802]
[1733089936673,0.10350637,97835.0,97806.0,0.0802]
[1733089936883,2.446569,97834.0,97806.0,0.0802]
[1733089937099,2.57373483,97833.0,97806.0,0.0802]
[1733089937315,2.312052,97832.0,97806.0,0.0802]
[1733089937552,0.10350637,97831.0,97806.0,0.0802]
[1733089937775,4.347949,97830.0,97806.0,0.0802]
[1733089938001,0.10350637,97829.0,97806.0,0.0802]
[1733089938438,3.51433978,97828.0,97806.0,0.0802]
[1733089938744,2.11064537,97827.0,97806.0,0.0802]
[1733089938959,2.173101,97826.0,97806.0,0.0802]
[1733089939191,0.10350637,97825.0,97806.0,0.0802]
[1733089939416,2.30994837,97825.0,97806.0,0.0822]
[1733089939629,2.237253,97824.0,97806.0,0.0802]
[1733089939813,1.46916237,97823.0,97806.0,0.0832]
[1733089940085,0.316436,97822.0,97807.0,0.047]
[1733089940302,0.334915,97821.0,97808.0,0.0825]
[1733089940515,0.00066116,97820.0,97808.0,0.08730388]
[1733089940737,0.28796716,97820.0,97808.0,0.08730388]
[1733089940974,0.23827016,97820.0,97808.0,0.08730388]
[1733089941217,0.00066116,97820.0,97808.0,0.08730388]
[1733089941431,0.187434,97819.0,97808.0,0.08730388]
[1733089941676,0.00066116,97818.0,97808.0,0.08730388]
[1733089941899,0.170782,97817.0,97808.0,0.08730388]
[1733089942119,0.00066116,97816.0,97808.0,0.08730388]
[1733089942384,1.35665516,97826.0,97808.0,0.08730388]
[1733089942608,1.10132916,97825.0,97808.0,0.08730388]
[1733089942852,1.100668,97824.0,97808.0,0.0825]
[1733089943068,0.001,97820.0,97808.0,0.0885]
[1733089943291,0.11884216,97819.0,97808.0,0.0825]
[1733089943729,0.214895,97818.0,97809.0,0.00480181]
[1733089943940,0.00066116,97817.0,97809.0,0.00480181]
[1733089944159,0.13601316,97817.0,97809.0,0.00480181]
[1733089944386,0.00066116,97817.0,97810.0,0.0825]
[1733089944625,0.00066116,97830.0,97810.0,0.0825]
[1733089944849,0.83435216,97829.0,97811.0,0.00479766]
[1733089945318,0.805564,97828.0,97810.0,0.0825]
[1733089945528,0.00066116,97827.0,97810.0,0.0825]
[1733089945742,0.001,97820.0,97810.0,0.0825]
[1733089946169,0.333882,97819.0,97810.0,0.0825]
[1733089946398,0.00066116,97818.0,97811.0,0.002]
[1733089946625,0.00066116,97818.0,97811.0,0.00691016]
[1733089946832,0.00066116,97841.0,97811.0,0.00491016]
[1733089947054,0.001,97820.0,97811.0,0.00491016]
[1733089947272,0.219559,97819.0,97811.0,0.00491016]
[1733089947491,0.00066116,97818.0,97813.0,0.0825]
[1733089947732,0.00066116,97838.0,97813.0,0.0825]
[1733089947955,2.89008337,97837.0,97814.0,0.00490394]
[1733089948179,3.09211462,97836.0,97813.0,0.0825]
[1733089948405,2.54676437,97835.0,97813.0,0.0825]
[1733089948632,0.001,97818.0,97813.0,0.0825]
[1733089948845,3.369676,97817.0,97813.0,0.0825]
[1733089949055,1.78068316,97816.0,97814.0,0.00490394]
[1733089949270,1.744355,97815.0,97813.0,0.0825]
[1733089949495,0.00066116,97814.0,97813.0,0.0825]
[1733089949718,2.03376616,97814.0,97813.0,0.0825]
[1733089949938,1.729297,97814.0,97813.0,0.007]
[1733089950195,3.218773,97817.0,97807.0,0.0825]
[1733089950418,1.64240516,97816.0,97807.0,0.0825]
[1733089950627,1.381344,97815.0,97813.0,0.009]
[1733089950832,2.40702816,97814.0,97813.0,0.009]
[1733089951062,1.400147,97814.0,97813.0,0.009]
[1733089951724,1.400147,97814.0,97807.0,0.0825]
[1733089951952,1.28282516,97813.0,97807.0,0.0825]
[1733089952173,1.19985,97812.0,97807.0,0.0825]
[1733089952397,0.00066116,97811.0,97807.0,0.0825]
[1733089952612,0.94969016,97811.0,97807.0,0.0825]
[1733089953047,1.291028,97810.0,97807.0,0.0825]
[1733089953262,0.00066116,97809.0,97807.0,0.0915]
[1733089953470,0.00066116,97809.0,97807.0,0.0825]
[1733089953895,0.00066116,97809.0,97807.0,0.0915]
[1733089954101,0.00059439,97810.0,97808.0,0.00393707]
[1733089954387,0.00059439,97810.0,97808.0,0.00492133]
[1733089955473,0.00159439,97810.0,97808.0,0.00492133]
[1733089956105,0.00259439,97810.0,97808.0,0.01392133]
[1733089958772,0.03278975,97838.0,97808.0,0.01392133]
[1733089958984,3.122811,97834.0,97808.0,0.01451572]
[1733089959204,0.12294993,97833.0,97808.0,0.01451572]
[1733089959416,3.296836,97832.0,97808.0,0.00959439]
[1733089959625,0.10284521,97831.0,97808.0,0.00959439]
[1733089959835,2.601236,97830.0,97808.0,0.00059439]
[1733089960036,2.63219521,97829.0,97808.0,0.00059439]
[1733089960468,3.193444,97828.0,97808.0,0.00059439]
[1733089960654,0.10284521,97827.0,97808.0,0.00059439]
[1733089960864,3.121621,97826.0,97808.0,0.00059439]
[1733089961078,0.10284521,97825.0,97808.0,0.00059439]
[1733089961291,2.660997,97824.0,97808.0,0.00059439]
[1733089961513,2.76384221,97824.0,97808.0,0.00059439]
[1733089961772,2.194599,97823.0,97808.0,0.00159439]
[1733089962018,0.62525,97822.0,97808.0,0.00059439]
[1733089962199,0.499266,97821.0,97808.0,0.00059439]
[1733089962407,0.674041,97823.0,97808.0,0.00459439]
[1733089962615,0.669241,97823.0,97808.0,0.00059439]
[1733089962828,0.664331,97823.0,97808.0,0.00059439]
[1733089963037,0.669131,97823.0,97808.0,0.00559439]
[1733089963250,0.61537249,97822.0,97808.0,0.00559439]
[1733089963477,0.03208975,97837.0,97809.0,0.0785]
[1733089963697,2.12934621,97836.0,97809.0,0.0785]
[1733089963919,2.052217,97835.0,97810.0,0.00491619]
[1733089964143,0.10284521,97834.0,97821.0,0.1]
[1733089964382,1.94287921,97834.0,97821.0,0.1]
[1733089964592,1.501529,97833.0,97821.0,0.1]
[1733089964801,0.10284521,97832.0,97821.0,0.1]
[1733089965011,1.53015021,97832.0,97821.0,0.1]
[1733089965244,1.387616,97831.0,97821.0,0.1]
[1733089965455,0.10284521,97830.0,97821.0,0.1]
[1733089965693,1.373787,97829.0,97822.0,0.0785]
[1733089965957,1.47663221,97829.0,97822.0,0.0785]
[1733089966181,1.24602,97828.0,97822.0,0.0785]
[1733089966418,1.201789,97827.0,97822.0,0.0785]
[1733089966642,1.266915,97828.0,97822.0,0.0785]
[1733089967735,1.170289,97827.0,97822.0,0.0785]
[1733089968154,1.163801,97828.0,97822.0,0.0785]
[1733089968417,1.883514,97828.0,97822.0,0.0805]
[1733089968631,1.940765,97827.0,97822.0,0.0785]
[1733089969077,1.598258,97826.0,97822.0,0.0815]
[1733089969298,1.008461,97825.0,97822.0,0.0785]
[1733089969564,2.009849,97828.0,97822.0,0.0785]
[1733089969807,1.288262,97824.0,97822.0,0.0805]
[1733089970033,2.125507,97828.0,97822.0,0.0805]
[1733089970243,1.051152,97823.0,97822.0,0.0805]
[1733089970454,2.125507,97828.0,97822.0,0.0805]
[1733089970912,2.125507,97828.0,97822.0,0.0785]
[1733089971336,2.125507,97828.0,97822.0,0.0815]
[1733089971555,0.10284521,97827.0,97815.0,0.0785]
[1733089971764,2.281873,97826.0,97815.0,0.0785]
[1733089971975,0.10284521,97825.0,97822.0,0.002]
[1733089972186,3.055795,97824.0,97822.0,0.002]
[1733089972416,2.455678,97823.0,97822.0,0.002]
[1733089972625,1.197914,97823.0,97815.0,0.0785]
[1733089972859,1.177371,97822.0,97815.0,0.0785]
[1733089973070,2.099359,97824.0,97815.0,0.0815]
[1733089973302,1.639871,97821.0,97815.0,0.0815]
[1733089973516,1.337296,97824.0,97815.0,0.0815]
[1733089973762,0.81789,97820.0,97815.0,0.0815]
[1733089973979,1.19789,97819.0,97815.0,0.0815]
[1733089974191,2.407578,97824.0,97815.0,0.0815]
[1733089974404,1.436589,97823.0,97815.0,0.0785]
[1733089974614,0.10284521,97825.0,97822.0,0.005]
[1733089974822,1.287684,97824.0,97815.0,0.0785]
[1733089975243,0.001,97819.0,97815.0,0.0855]
[1733089975448,0.498115,97823.0,97815.0,0.0785]
[1733089975659,0.369374,97822.0,97816.0,0.00489941]
[1733089975929,0.623364,97824.0,97816.0,0.00489941]
[1733089976119,0.334103,97823.0,97816.0,0.00489941]
[1733089976331,0.31363,97823.0,97815.0,0.0785]
[1733089976541,0.348697,97822.0,97817.0,0.00489734]
[1733089976755,0.292339,97821.0,97816.0,0.00489941]
[1733089976962,0.945279,97828.0,97818.0,0.00489526]
[1733089977241,0.800805,97827.0,97817.0,0.00489734]
[1733089977480,0.001,97819.0,97815.0,0.0855]
[1733089977689,0.10032,97818.0,97815.0,0.0855]
[1733089977899,0.10032,97818.0,97816.0,0.00489941]
[1733089978111,0.957086,97828.0,97818.0,0.002]
[1733089978325,0.0008653,97829.0,97818.0,0.002]
[1733089978553,0.928435,97828.0,97815.0,0.0785]
[1733089978785,0.001,97819.0,97815.0,0.0855]
[1733089978989,0.10371051,97829.0,97817.0,0.0017306]
[1733089979208,0.885587,97828.0,97817.0,0.0017306]
[1733089979439,0.885587,97828.0,97818.0,0.00689526]
[1733089979653,0.885587,97828.0,97818.0,0.002]
[1733089979867,1.304025,97827.0,97818.0,0.002]
[1733089980099,1.856147,97828.0,97818.0,0.002]
[1733089980311,0.989178,97827.0,97818.0,0.002]
[1733089980535,1.540963,97828.0,97818.0,0.002]
[1733089980767,0.10371051,97829.0,97819.0,0.0464]
[1733089980768,0.524911,97827.0,97819.0,0.0464]
[1733089981010,0.155387,97826.0,97819.0,0.0464]
[1733089981243,0.491354,97828.0,97820.0,0.00488968]
[1733089981672,0.296838,97828.0,97821.0,0.0772]
[1733089981898,0.200146,97827.0,97821.0,0.0772]
[1733089982123,0.227573,97828.0,97822.0,0.00488554]
[1733089982349,0.227522,97828.0,97822.0,0.00488554]
[1733089982573,0.200095,97827.0,97822.0,0.00488554]
[1733089982796,0.257317,97828.0,97822.0,0.00488554]
[1733089983769,0.303255,97827.0,97822.0,0.00488554]
[1733089984205,0.137169,97826.0,97822.0,0.00488554]
[1733089984413,0.385582,97828.0,97822.0,0.00488554]
[1733089984617,2.921061,97828.0,97822.0,0.00688554]
[1733089984864,2.192027,97828.0,97822.0,0.00688554]
[1733089985113,1.42433,97827.0,97821.0,0.0772]
[1733089985310,1.926237,97828.0,97822.0,0.003]
[1733089985522,1.662019,97826.0,97822.0,0.003]
[1733089985748,1.178519,97825.0,97821.0,0.0772]
[1733089985978,1.474209,97828.0,97821.0,0.0772]
[1733089986197,1.245374,97828.0,97821.0,0.0772]
[1733089986413,0.0008653,97829.0,97821.0,0.0772]
[1733089986414,0.598989,97827.0,97821.0,0.0772]
[1733089986616,0.711084,97828.0,97821.0,0.0772]
[1733089986837,0.975779,97828.0,97821.0,0.0772]
[1733089987037,0.975779,97828.0,97822.0,0.002]
[1733089987465,0.975779,97828.0,97821.0,0.0772]
[1733089987917,0.975779,97828.0,97821.0,0.0802]
[1733089988132,0.310016,97827.0,97821.0,0.0772]
[1733089988360,0.331758,97828.0,97822.0,0.002]
[1733089988567,0.328473,97828.0,97822.0,0.00704993]
[1733089988766,0.518746,97828.0,97822.0,0.00504993]
[1733089989403,0.518747,97828.0,97822.0,0.00504993]
[1733089989828,0.43935,97827.0,97822.0,0.00504993]
[1733089990109,0.466777,97828.0,97822.0,0.00504993]
[1733089990336,0.518747,97828.0,97822.0,0.00504993]
[1733089990549,0.410339,97827.0,97822.0,0.00704993]
[1733089990769,0.292916,97828.0,97822.0,0.00704993]
[1733089991016,0.697677,97828.0,97822.0,0.00504993]
[1733089991254,0.495662,97827.0,97822.0,0.00804993]
[1733089991481,0.495662,97827.0,97821.0,0.0772]
[1733089991686,0.495662,97827.0,97823.0,0.00504786]
[1733089991892,0.495662,97827.0,97822.0,0.00704993]
[1733089992123,0.495662,97827.0,97824.0,0.00504579]
[1733089992357,0.495662,97827.0,97823.0,0.00504786]
[1733089992358,0.366428,97827.0,97823.0,0.00504786]
[1733089992601,0.334928,97827.0,97822.0,0.002]
[1733089992832,0.0008653,97828.0,97825.0,0.0797]
[1733089993059,0.0008653,97828.0,97823.0,0.00502999]
[1733089993265,0.0008653,97828.0,97826.0,0.00502377]
[1733089993473,0.0008653,97828.0,97827.0,0.23114521]
[1733089993681,0.0008653,97828.0,97827.0,0.23579191]
[1733089994097,0.0008653,97828.0,97827.0,0.25579191]
[1733089994331,0.0008651,97842.0,97827.0,0.12749191]
[1733089994562,0.0008651,97842.0,97829.0,0.1283]
[1733089994760,0.0008651,97842.0,97827.0,0.12749191]
[1733089994761,0.0008651,97842.0,97830.0,0.10284521]
[1733089994945,0.0008651,97842.0,97832.0,0.0486]
[1733089995186,0.0008651,97842.0,97833.0,0.10284521]
[1733089995405,0.0008651,97842.0,97835.0,0.1283]
[1733089995609,0.0008651,97842.0,97837.0,0.1283]
[1733089995823,0.0008651,97842.0,97839.0,0.0797]
[1733089996033,0.0008651,97842.0,97839.0,0.10284521]
[1733089996307,0.0008651,97842.0,97840.0,0.08431096]
[1733089996773,0.0008651,97842.0,97841.0,0.0486]
[1733089996987,0.0008651,97842.0,97841.0,0.23581343]
[1733089997194,0.0018651,97842.0,97841.0,0.23581343]
[1733089997817,0.0028651,97842.0,97841.0,0.23581343]
[1733089998249,0.0008651,97842.0,97841.0,0.23581343]
[1733089998448,0.0018651,97842.0,97841.0,0.24481343]
[1733090005171,0.0018651,97842.0,97841.0,0.14196822]
[1733090005388,0.0018651,97842.0,97841.0,0.09336822]
[1733090005389,0.9139701,97842.0,97841.0,0.09336822]
[1733090005636,0.5266041,97842.0,97841.0,0.09336822]
[1733090005854,0.2700271,97842.0,97841.0,0.08875934]
[1733090006269,0.2700271,97842.0,97841.0,0.09336822]
[1733090007375,0.0018651,97842.0,97841.0,0.09336822]
[1733090009450,0.0018651,97842.0,97841.0,0.14066822]
[1733090011438,0.0018651,97842.0,97841.0,0.25351343]
[1733090012152,0.0018651,97842.0,97841.0,0.26351343]
[1733090017768,0.000865,97877.0,97841.0,0.26351343]
[1733090017769,0.000865,97877.0,97842.0,0.1234]
[1733090017981,0.000865,97877.0,97855.0,0.0761]
[1733090018211,0.000865,97877.0,97856.0,0.10284521]
[1733090018415,0.000865,97877.0,97856.0,0.10735453]
[1733090020206,0.000865,97877.0,97857.0,0.0492]
[1733090020434,0.000865,97877.0,97858.0,0.10284521]
[1733090020646,0.000865,97877.0,97858.0,0.10732367]
[1733090023359,0.000865,97877.0,97859.0,0.0754]
[1733090023811,0.000865,97877.0,97859.0,0.07987639]
[1733090024041,0.000865,97877.0,97859.0,0.12907639]
[1733090024270,0.000865,97877.0,97859.0,0.2319216]
[1733090024482,0.000865,97877.0,97859.0,0.2359216]
[1733090037697,0.0465,97884.0,97859.0,0.13307639]
[1733090037914,2.104794,97883.0,97859.0,0.13307639]
[1733090038125,2.145724,97883.0,97859.0,0.1286]
[1733090038358,0.0008648,97860.0,97859.0,0.1286]
[1733090039055,0.0008648,97860.0,97859.0,0.1246]
[1733090039274,0.0008648,97860.0,97859.0,0.1256]
[1733090039479,0.0008648,97860.0,97859.0,0.1246]
[1733090039682,0.0008648,97860.0,97859.0,0.1286]
[1733090040821,0.0008648,97860.0,97859.0,0.0794]
[1733090041084,0.0008648,97860.0,97859.0,0.004]
[1733090042214,0.9113998,97860.0,97859.0,0.004]
[1733090043634,0.9113998,97860.0,97846.0,0.0753]
[1733090043842,1.481473,97859.0,97842.0,0.0017296]
[1733090044271,0.0219,97858.0,97842.0,0.0017296]
[1733090044478,1.955166,97857.0,97842.0,0.0017296]
[1733090044681,1.600203,97856.0,97842.0,0.0017296]
[1733090044887,1.558323,97855.0,97842.0,0.0017296]
[1733090045092,1.24016,97854.0,97842.0,0.0017296]
[1733090045297,0.793492,97853.0,97842.0,0.0017296]
[1733090045512,0.724436,97852.0,97842.0,0.0017296]
[1733090045731,0.946492,97857.0,97842.0,0.0017296]
[1733090045946,0.001,97855.0,97842.0,0.0017296]
[1733090046155,0.867151,97854.0,97842.0,0.0017296]
[1733090046549,1.175793,97857.0,97842.0,0.0017296]
[1733090046778,1.745649,97857.0,97842.0,0.0017296]
[1733090046982,0.10283146,97856.0,97842.0,0.0017296]
[1733090047192,0.001,97855.0,97842.0,0.0017296]
[1733090047399,2.095782,97855.0,97842.0,0.0017296]
[1733090047628,0.001,97855.0,97842.0,0.0017296]
[1733090047764,2.13519584,97854.0,97842.0,0.0017296]
[1733090048011,2.826711,97853.0,97842.0,0.0017296]
[1733090048354,4.27037321,97852.0,97842.0,0.0017296]
[1733090048566,4.167528,97851.0,97842.0,0.0017296]
[1733090048747,0.10284521,97850.0,97842.0,0.0017296]
[1733090048914,4.167528,97849.0,97842.0,0.0017296]
[1733090049301,3.816348,97849.0,97842.0,0.0017296]
[1733090049509,4.106215,97849.0,97842.0,0.0017296]
[1733090049954,4.167528,97848.0,97842.0,0.0017296]
[1733090050179,4.167528,97849.0,97842.0,0.0017296]
[1733090050383,0.16742448,97848.0,97842.0,0.0017296]
[1733090050619,4.27037321,97848.0,97842.0,0.0017296]
[1733090050815,4.167528,97847.0,97842.0,0.0017296]
[1733090051067,0.10284521,97846.0,97842.0,0.0017296]
[1733090051270,3.84884521,97846.0,97842.0,0.0017296]
[1733090051468,3.718618,97845.0,97842.0,0.0017296]
[1733090051606,0.20567667,97844.0,97842.0,0.0017296]
[1733090051827,3.48187,97843.0,97842.0,0.0017296]
[1733090052030,3.01569901,97843.0,97842.0,0.0017296]
[1733090052239,3.06089901,97843.0,97842.0,0.0017296]
[1733090052861,2.58478101,97843.0,97842.0,0.0017296]
[1733090053201,1.33754801,97843.0,97842.0,0.0017296]
[1733090054292,1.31578601,97843.0,97842.0,0.0017296]
[1733090054709,1.16661588,97843.0,97842.0,0.0017296]
[1733090054935,0.60897,97843.0,97842.0,0.0017296]
[1733090056486,0.45757804,97843.0,97842.0,0.0017296]
[1733090056700,0.03208975,97849.0,97842.0,0.0017296]
[1733090056925,0.89731,97848.0,97842.0,0.0017296]
[1733090057152,0.001,97843.0,97842.0,0.0017296]
[1733090058338,0.03208975,97849.0,97842.0,0.0017296]
[1733090058546,0.929545,97848.0,97842.0,0.0017296]
[1733090058773,0.001,97843.0,97842.0,0.0017296]
[1733090058993,0.0231,97866.0,97842.0,0.0017296]
[1733090059229,0.001,97843.0,97842.0,0.0017296]
[1733090059445,3.49462421,97859.0,97842.0,0.0017296]
[1733090059665,2.642819,97858.0,97842.0,0.0017296]
[1733090059885,0.002,97848.0,97842.0,0.0017296]
[1733090060101,0.99237,97847.0,97842.0,0.0017296]
[1733090060543,1.50489,97847.0,97842.0,0.0017296]
[1733090060969,1.313886,97847.0,97842.0,0.0017296]
[1733090062077,1.334419,97846.0,97842.0,0.0017296]
[1733090062277,1.202929,97845.0,97842.0,0.0017296]
[1733090062484,2.393996,97857.0,97842.0,0.0017296]
[1733090062698,0.002,97847.0,97842.0,0.0017296]
[1733090062923,1.535929,97846.0,97842.0,0.0017296]
[1733090063151,0.002,97847.0,97843.0,0.00331998]
[1733090063369,3.936586,97846.0,97842.0,0.0017296]
[1733090063814,2.525599,97845.0,97842.0,0.0027296]
[1733090064023,2.898334,97846.0,97842.0,0.0017296]
[1733090064230,0.001,97847.0,97842.0,0.0017296]
[1733090064448,2.847552,97845.0,97842.0,0.0017296]
[1733090064678,2.90532,97846.0,97843.0,0.00331998]
[1733090064891,2.39291,97845.0,97842.0,0.0017296]
[1733090065100,2.328834,97844.0,97842.0,0.0017296]
[1733090065313,1.699021,97843.0,97842.0,0.0017296]
[1733090065572,2.283489,97846.0,97842.0,0.0017296]
[1733090065799,1.699021,97843.0,97842.0,0.0017296]
[1733090066010,2.218307,97845.0,97842.0,0.0017296]
[1733090066220,1.551991,97843.0,97842.0,0.0017296]
[1733090066456,2.935691,97855.0,97842.0,0.0017296]
[1733090066865,0.001,97846.0,97842.0,0.0017296]
[1733090067079,2.146686,97845.0,97843.0,0.00331998]
[1733090067284,2.146686,97845.0,97842.0,0.0017296]
[1733090067481,3.00368,97857.0,97842.0,0.0017296]
[1733090067689,0.11239195,97856.0,97842.0,0.0017296]
[1733090067912,2.96767,97855.0,97842.0,0.0017296]
[1733090068129,2.97723049,97855.0,97842.0,0.0017296]
[1733090068348,2.97724049,97854.0,97842.0,0.0017296]
[1733090068564,2.72731749,97853.0,97842.0,0.0017296]
[1733090068771,2.63086649,97852.0,97842.0,0.0017296]
[1733090069001,0.001,97846.0,97842.0,0.0017296]
[1733090069235,0.00956049,97845.0,97842.0,0.0017296]
[1733090069498,2.968084,97856.0,97843.0,0.00331998]
[1733090069715,0.005,97854.0,97843.0,0.00331998]
[1733090069933,2.718151,97853.0,97842.0,0.0017296]
[1733090070160,0.001,97846.0,97842.0,0.0017296]
[1733090070392,2.117563,97845.0,97842.0,0.0017296]
[1733090070615,3.125055,97857.0,97842.0,0.0017296]
[1733090070849,2.973698,97856.0,97842.0,0.0017296]
[1733090071073,3.169934,97857.0,97842.0,0.0017296]
[1733090071294,2.644052,97856.0,97842.0,0.0017296]
[1733090071505,2.546917,97855.0,97842.0,0.0017296]
[1733090071721,2.646534,97857.0,97842.0,0.0017296]
[1733090071941,2.642367,97856.0,97842.0,0.0017296]
[1733090072167,2.588434,97855.0,97842.0,0.0017296]
[1733090072393,0.0008648,97845.0,97842.0,0.0017296]
[1733090072624,1.872229,97844.0,97842.0,0.0017296]
[1733090072848,0.0008648,97845.0,97843.0,0.00417632]
[1733090073060,1.827639,97844.0,97842.0,0.0027296]
[1733090073407,1.827639,97844.0,97843.0,0.00417632]
[1733090073514,1.827639,97844.0,97842.0,0.0017296]
[1733090074080,1.540408,97843.0,97842.0,0.0017296]
[1733090074295,1.920723,97844.0,97842.0,0.0017296]
[1733090074512,1.547087,97843.0,97842.0,0.0017296]
[1733090074725,1.571261,97844.0,97842.0,0.0017296]
[1733090074938,1.392018,97843.0,97842.0,0.0017296]
[1733090075143,1.48962,97844.0,97842.0,0.0017296]
[1733090075344,1.353738,97843.0,97842.0,0.0017296]
[1733090075552,1.45134,97844.0,97842.0,0.0017296]
[1733090077750,0.0008648,97845.0,97842.0,0.0017296]
[1733090077955,2.13435,97844.0,97842.0,0.0017296]
[1733090078159,2.13435,97844.0,97843.0,0.00417566]
[1733090078404,2.13435,97844.0,97842.0,0.0017296]
[1733090081601,1.955922,97844.0,97842.0,0.0017296]
[1733090081782,2.367952,97844.0,97842.0,0.0017296]
[1733090082032,2.038689,97843.0,97842.0,0.0017296]
[1733090082244,2.419215,97844.0,97842.0,0.0017296]
[1733090082479,2.420083,97844.0,97842.0,0.0017296]
[1733090082694,2.359335,97843.0,97842.0,0.0017296]
[1733090083816,1.895301,97843.0,97842.0,0.0017296]
[1733090084266,1.8656,97843.0,97842.0,0.0017296]
[1733090084697,0.001,97843.0,97842.0,0.0017296]